Cogmind - Beta 17 @@@ ROGUE MODE // 2026.08.21 @ 09:45:58 Player: Floof Enjoyer Result: Destroyed by G-34 Mercenary with Small Laser Performance ------------- Evolutions (0) 0 Regions Visited (4) 800 Robots Destroyed (15) 75 Value Destroyed (346) 346 Prototype IDs (2) 40 Alien Tech Used (0) 0 Bonus (300) 300 TOTAL SCORE: 1561 Bonus ------- Aligned with FarCom 300 Cogmind --------- Core Integrity 0/250 Matter 219/300 Energy 99/100 System Corruption 0% Temperature Cool (6) Movement Core (200) Ox3 Location -9/Mines Parts ------- > --- POWER (1) -------- (None) > --- PROPULSION (2) --- (None) > --- UTILITY (2) ------ Medium Storage Unit 0b10 Alert Chip > --- WEAPON (2) ------- Light Assault Rifle > --- INVENTORY (10) --- Sensor Array Sensor Array Sensor Array Sensor Array Terrain Scanner Terrain Scanner EM Pulse Gun Medium Laser Peak State ------------ > --- POWER ------------ Light Ion Engine > --- PROPULSION ------- Compact Wheel Compact Wheel > --- UTILITY ---------- Medium Storage Unit Skeleton Box > --- WEAPON ----------- Light Assault Rifle Light Assault Rifle > --- INVENTORY -------- Sensor Array Sensor Array Sensor Array Sensor Array Terrain Scanner Terrain Scanner EM Pulse Gun Medium Laser [Rating: 12] Favorites ----------- Power Ion Engine Engine Ion Engine Propulsion Wheel Wheel Wheel Utility Medium Storage Unit Device Structural Scanner Storage Medium Storage Unit Processor 0b10 Alert Chip Weapon Light Assault Rifle Ballistic Gun Light Assault Rifle Build | -11 -10 -10 -10 -9 ------- Run | Yrd Mat Min Exi Min Slots Evolved . | . . . . . Power . | . . . . . Propulsion . | . . . . . Utility . | . . . . . Weapon . | . . . . . Parts Attached 16 | 4 10 . 2 . Power 2 | 1 1 . . . Engine 2 | 1 1 . . . Core . | . . . . . Reactor . | . . . . . Propulsion 4 | 1 3 . . . Treads . | . . . . . Leg . | . . . . . Wheel 4 | 1 3 . . . Hover . | . . . . . Flight . | . . . . . Utility 5 | . 3 . 2 . Device 3 | . 2 . 1 . Storage 1 | . 1 . . . Processor 1 | . . . 1 . Hackware . | . . . . . Protection . | . . . . . Artifact . | . . . . . Weapon 5 | 2 3 . . . Energy Gun . | . . . . . Energy Cannon . | . . . . . Ballistic Gun 5 | 2 3 . . . Ballistic Cannon . | . . . . . Launcher . | . . . . . Special Weapon . | . . . . . Impact Weapon . | . . . . . Slashing Weapon . | . . . . . Piercing Weapon . | . . . . . Special Melee Weapon . | . . . . . Unidentified Prototypes 2 | . . . 2 . Parts Lost 8 | . 4 . . 4 Power 2 | . 1 . . 1 Propulsion 4 | . 2 . . 2 Utility . | . . . . . Weapon 2 | . 1 . . 1 Highest Loss Streak 4 | . 2 . . 4 To Critical Strikes . | . . . . . Average Backups 7 | 1 8 8 8 8 Power . | . . . . . Propulsion . | . 1 . . . Utility 4 | . 4 6 6 6 Weapon 2 | 1 2 2 2 2 Tool/Special . | . . . . . Unused Backups 9 | . 2 . . 7 Power . | . . . . . Propulsion . | . . . . . Utility 5 | . . . . 5 Weapon 4 | . 2 . . 2 Tool/Special . | . . . . . Average Slot Usage (%) 94 | . 93 100 99 82 Engine 13 | . 13 14 14 8 Wheel 25 | . 24 28 28 19 Device 11 | . 14 14 7 . Storage 12 | . 12 14 14 14 Processor 2 | . . . 5 14 Ballistic Gun 27 | . 27 28 28 25 Peak Build Rating 12 | 4 8 7 12 12 Average Rating 7 | 2 6 7 9 10 On Entrance 6 | . 4 7 7 12 Avg Prop Armor Cover (%) . | . . . . . Naked Turns . | . . . . . Heaviest Build 20 | 9 20 16 16 15 Greatest Support 32 | 10 32 32 32 32 Greatest Overweight (x) 1 | . 1 . . . Average Overweight (x) . | . . . . . Largest Inventory Capacity 10 | 5 10 10 10 10 Average Capacity 9 | 5 9 10 10 10 Most Carried 10 | 3 10 8 9 8 Average Carried 7 | 1 8 8 8 8 Final Capacity 10 | 5 10 10 10 10 Final Carried 8 | 2 8 8 8 8 Class Distribution -------------------- 100% | Mutant Dominant Class ---------------- Mutant | -10/Materials Mutant | -10/Mines Mutant | -10/Exiles Mutant | -9/Mines Resources | -11 -10 -10 -10 -9 ----------- Run | Yrd Mat Min Exi Min Matter Collected 449 | 209 211 29 . . Remotely . | . . . . . Salvage Created 421 | . 310 28 . 83 Parts 35 | . 26 4 . 5 Haulers Intercepted . | . . . . . Recyclers Shooed 2 | . 1 . . 1 Parts Field Recycled . | . . . . . Retrieved Matter . | . . . . . Parts Self-Destructed . | . . . . . Prevented . | . . . . . Parts Restored . | . . . . . Kills | -11 -10 -10 -10 -9 ------- Run | Yrd Mat Min Exi Min Combat Hostiles Destroyed 14 | . 12 . . 2 Guns 14 | . 12 . . 2 Classes Destroyed 3 | . 2 1 . . Worker 1 | . . 1 . . Swarmer 6 | . 6 . . . Grunt 8 | . 6 . . 2 Best Kill Streak 4 | . 4 1 . 2 Combat Bots Only 4 | . 4 . . 2 Max Kills in Single Turn 2 | . 2 1 . 1 Gunslinging 1 | . 1 . . . Exploded . | . . . . . Melee . | . . . . . Uniques/NPCs Destroyed . | . . . . . Combat | -11 -10 -10 -10 -9 -------- Run | Yrd Mat Min Exi Min Hostile Shots Fired 109 | . 65 . . 44 Missed 16 | . 11 . . 5 Hits 93 | . 54 . . 39 Projectile 93 | . 54 . . 39 Damage Taken 1058 | . 576 . . 482 Core 261 | . 130 . . 131 Absorbed by Shields . | . . . . . Core Remaining (%) 100 | 100 . . . . Volleys Fired 59 | . 40 1 . 18 Largest 2 | . 2 2 . 2 Hottest 40 | . 40 40 . 40 Shots Fired 112 | . 80 2 . 30 Gun 112 | . 80 2 . 30 Cannon . | . . . . . Launcher . | . . . . . Special . | . . . . . Kinetic 112 | . 80 2 . 30 Thermal . | . . . . . Explosive . | . . . . . Electromagnetic . | . . . . . Robot Hit Streak 6 | . 6 6 . 5 Robot Miss Streak 4 | . 3 . . 4 Penetration Max . | . . . . . Secondary Targets 3 | . 3 . . . Max Gunslinging Chain 1 | . 1 . . . Shots Hit Robots 67 | . 49 2 . 16 Core Hits 27 | . 18 2 . 7 Critical Kills . | . . . . . Critical Parts Destroyed . | . . . . . Critical Strikes . | . . . . . Melee Attacks . | . . . . . Impact . | . . . . . Slashing . | . . . . . Piercing . | . . . . . Sneak Attacks . | . . . . . Combat Hostiles . | . . . . . Follow-up Attacks . | . . . . . Damage Inflicted 753 | . 574 15 . 164 Guns 746 | . 567 15 . 164 Cannons . | . . . . . Explosions . | . . . . . Melee . | . . . . . Ramming 7 | . 7 . . . Kinetic 746 | . 567 15 . 164 Thermal . | . . . . . Explosive . | . . . . . Electromagnetic . | . . . . . Impact . | . . . . . Slashing . | . . . . . Piercing . | . . . . . Highest Corruption . | . . . . . Average Corruption . | . . . . . Corruption Purged . | . . . . . Corruption Blocked . | . . . . . Overload Shots . | . . . . . Overflow Damage . | . . . . . Projectiles . | . . . . . Explosions . | . . . . . Melee . | . . . . . Knockbacks . | . . . . . Impact . | . . . . . Kinetic . | . . . . . Secondary . | . . . . . Self-Inflicted Damage 3 | . 3 . . . Shots . | . . . . . Rammed 2 | . 2 . . . Targets Rammed 2 | . 2 . . . Kicked . | . . . . . Crushed . | . . . . . Highest Temperature 73 | . 12 . . 73 Average Temperature 24 | . 6 . . 35 Received Heat Transfer 507 | . 234 . . 273 Siege Activations . | . . . . . Martial Activations . | . . . . . Shielding Activations . | . . . . . Robots Disrupted . | . . . . . Combat Hostiles . | . . . . . Robots Corrupted . | . . . . . Combat Hostiles . | . . . . . Parts Fried . | . . . . . Impact Corruptions . | . . . . . Robots Melted . | . . . . . Combat Hostiles . | . . . . . Parts Melted . | . . . . . Heat Transferred . | . . . . . Parts Sabotaged . | . . . . . Parts Stolen . | . . . . . Parts Stripped . | . . . . . Power Chain Reactions . | . . . . . Alert | -11 -10 -10 -10 -9 ------- Run | Yrd Mat Min Exi Min Maximum Alert Level . | . . . . . Low Security (%) 100 | 100 100 100 . 100 Level 1 . | . . . . . Level 2 . | . . . . . Level 3 . | . . . . . Level 4 . | . . . . . Level 5 . | . . . . . High Security . | . . . . . Max Security . | . . . . . Peak Influence 94 | . 94 26 . 24 Initial 21 | . . 21 . . Average 27 | . 31 20 . 4 Influence Increases 337 | . 292 5 . 40 Destroy 0b10 Robot/C 272 | . 240 . . 32 Destroy 0b10 Robot/NC 5 | . . 5 . . Destroy Leader 58 | . 50 . . 8 Destroy Structure 2 | . 2 . . . Influence Decreases 333 | . 238 43 16 36 Entered New Map 49 | . . 33 16 . Time Decay 218 | . 198 10 . 10 Lost Part 66 | . 40 . . 26 Squads Dispatched 4 | . 4 . . . Investigation 3 | . 3 . . . Extermination . | . . . . . Reinforcement 1 | . 1 . . . Assault . | . . . . . Garrison . | . . . . . Intercept . | . . . . . Searches Triggered . | . . . . . Construction Impeded . | . . . . . Haulers Reinforced . | . . . . . Active Scanning Responses . | . . . . . Cargo Convoy Interrupts . | . . . . . Stealth | -11 -10 -10 -10 -9 --------- Run | Yrd Mat Min Exi Min Distress Signals 2 | . 2 . . . Communications Jammed . | . . . . . Distress Signals . | . . . . . Times Spotted 22 | . 19 . . 3 Peak Tracking Total 5 | . 5 . . 3 Tactical Retreats . | . . . . . Traps | -11 -10 -10 -10 -9 ------- Run | Yrd Mat Min Exi Min Traps Triggered 4 | . 4 . . . Indirectly . | . . . . . Trap Hack Attempts . | . . . . . Triggered . | . . . . . Disarmed . | . . . . . Reprogrammed . | . . . . . Reused . | . . . . . Traps Extracted . | . . . . . Installed . | . . . . . Triggered . | . . . . . Machines | -11 -10 -10 -10 -9 ---------- Run | Yrd Mat Min Exi Min Machines Disabled . | . . . . . Max in Single Turn . | . . . . . Machines Repaired . | . . . . . Machines Dismantled . | . . . . . Machines Sabotaged . | . . . . . Overloaded Fab Kills . | . . . . . Hacking | -11 -10 -10 -10 -9 --------- Run | Yrd Mat Min Exi Min Machines Accessed . | . . . . . Terminals . | . . . . . Fabricators . | . . . . . Repair Stations . | . . . . . Recycling Units . | . . . . . Scanalyzers . | . . . . . Garrison Access . | . . . . . Total Hacks . | . . . . . Successful . | . . . . . Failed . | . . . . . Catastrophic . | . . . . . Database Lockouts . | . . . . . Manual 1 | . . . 1 . Terminals . | . . . . . Fabricators . | . . . . . Repair Stations . | . . . . . Recycling Units . | . . . . . Scanalyzers . | . . . . . Garrison Access . | . . . . . Terminal Hacks . | . . . . . Fabricator Hacks . | . . . . . Repair Station Hacks . | . . . . . Recycling Unit Hacks . | . . . . . Scanalyzer . | . . . . . Garrison Access Hacks . | . . . . . Unauthorized Hacks . | . . . . . Terminals . | . . . . . Fabricators . | . . . . . Repair Stations . | . . . . . Recycling Units . | . . . . . Scanalyzers . | . . . . . Garrison Access . | . . . . . Data Cores Recovered . | . . . . . Used . | . . . . . Hacking Detections . | . . . . . Full Trace Events . | . . . . . Feedback Events . | . . . . . Feedback Blocked . | . . . . . Robot Schematics Acquired . | . . . . . Robots Built . | . . . . . Authchips . | . . . . . Time . | . . . . . Total Robot Build Rating . | . . . . . Part Schematics Acquired . | . . . . . Parts Built . | . . . . . Authchips . | . . . . . Time . | . . . . . Total Part Build Rating . | . . . . . Part Studies Acquired . | . . . . . Parts Repaired . | . . . . . Time . | . . . . . Parts Recycled . | . . . . . Recycled Matter . | . . . . . Retrieved Matter . | . . . . . Retrieved Components . | . . . . . Parts Scanalyzed . | . . . . . Part Schematics Acquired . | . . . . . Parts Damaged . | . . . . . Bothacking | -11 -10 -10 -10 -9 ------------ Run | Yrd Mat Min Exi Min Used RIF Installer . | . . . . . Robots Hacked . | . . . . . Non-combat . | . . . . . Combat . | . . . . . Robot Hacks Applied . | . . . . . Relay Couplers Released . | . . . . . Fabnet Peak Effective % . | . . . . . Robots Rewired . | . . . . . Allies Hacked . | . . . . . Hacks Repelled . | . . . . . Allies | -11 -10 -10 -10 -9 -------- Run | Yrd Mat Min Exi Min Total Allies . | . . . . . Largest Group . | . . . . . Highest-Rated Group . | . . . . . Highest-Rated Ally . | . . . . . Total Orders . | . . . . . Ally Attacks . | . . . . . Total Damage . | . . . . . Kills . | . . . . . Allies Corrupted . | . . . . . Allies Melted . | . . . . . Intel | -11 -10 -10 -10 -9 ------- Run | Yrd Mat Min Exi Min Active Infowar (turns) 780 | . 630 35 115 . Sensors 40 | . 40 . . . Structural 780 | . 630 35 115 . Robot Analysis Total . | . . . . . Derelict Logs Recovered . | . . . . . Drone Launches . | . . . . . Drone Recoveries . | . . . . . Exploration | -11 -10 -10 -10 -9 ------------- Run | Yrd Mat Min Exi Min Turns Passed 1003 | 45 658 35 220 45 Spaces Moved 884 | 44 588 33 215 4 Core 1 | 1 . . . . Treads . | . . . . . Legs . | . . . . . Wheels 883 | 43 588 33 215 4 Hover . | . . . . . Flight . | . . . . . Fastest Speed 50 | 50 80 100 100 100 Average Speed 89 | 79 85 100 100 100 Slowest Speed 100 | 80 100 100 100 100 Overloaded Moves . | . . . . . Propulsion Burnouts . | . . . . . Robots Hopped . | . . . . . Potential Cave-ins . | . . . . . Cave-ins Triggered . | . . . . . Exploration Rate (%) 31 | 3 82 7 61 4 Regions Visited 4 Branch Regions 3 Pre-discovered Areas . | . . . . . Known Exits Taken . | . . . . . Unknown Exits Taken 4 | 1 1 1 1 . Scrap Searched . | . . . . . Spaces Dug . | . . . . . Terrain Destroyed . | . . . . . Melee . | . . . . . Projectile . | . . . . . AOE . | . . . . . Terrain Rammed . | . . . . . Walls Destroyed . | . . . . . Machines Disabled . | . . . . . Actions | -11 -10 -10 -10 -9 --------- Run | Yrd Mat Min Exi Min Total 1002 | 53 674 33 220 22 Wait 11 | . 11 . . . Move 880 | 43 587 32 214 4 Hop . | . . . . . Pick Up 25 | 6 17 . 2 . Fast Attach 1 | . 1 . . . Attach 13 | 4 7 . 2 . Detach . | . . . . . Swap 2 | . 2 . . . Drop 9 | . 7 . 2 . Fire 59 | . 40 1 . 18 Melee . | . . . . . Ram 2 | . 2 . . . Kick . | . . . . . Crush . | . . . . . Escape Stasis . | . . . . . Rewire . | . . . . . Trap . | . . . . . Miscellaneous . | . . . . . Route ------- -11/Scrapyard -10/Materials (discovered 4 exits: [*Mat x3] / [*Min]) -10/Mines -10/Exiles -9/Mines History --------- Turn | Location | Event 2 | -11/Scrapyard | Met Revision 17 9 | -11/Scrapyard | Discovered new exit (range 16) 46 | -11/Scrapyard | Entered Materials 190 | -10/Materials | Discovered new exit (range 15) 314 | -10/Materials | Build established: Mutant 361 | -10/Materials | Discovered new exit (range 3) 559 | -10/Materials | Discovered new exit (range 12) 583 | -10/Materials | Core integrity fell below 50% 694 | -10/Materials | Discovered new exit (range 8) 704 | -10/Materials | Entered Mines 734 | -10/Mines | Deemed a non-threat by the Exiles lab entrance 734 | -10/Mines | Discovered new exit (range 6) 739 | -10/Mines | Entered Exiles 764 | -10/Exiles | Met 8R-AWN 780 | -10/Exiles | Met EX-HEX 810 | -10/Exiles | Met EX-BIN 821 | -10/Exiles | Aligned with FarCom system 822 | -10/Exiles | Given EX-Vault access code 848 | -10/Exiles | Opened EX-Vault 853 | -10/Exiles | Found Prototype Device 855 | -10/Exiles | Identified Skeleton Box 860 | -10/Exiles | Found Prototype Processor 861 | -10/Exiles | Identified 0b10 Alert Chip 886 | -10/Exiles | Warned to stay clear of 0b10 Research branches 912 | -10/Exiles | Met EX-DEC 949 | -10/Exiles | Discovered new exit (range 11) 959 | -10/Exiles | Left Exiles lab with 0b10 Alert Chip 959 | -10/Exiles | Entered Mines 984 | -9/Mines | Core integrity fell below 20% 1004 | -9/Mines | Destroyed by G-34 Mercenary with Small Laser Last Messages --------------- little joke and some thief managed to sneak in here and steal a few of HEX's prototypes. EX-DEC: Ah I see we have a visitor. One wrong move in here and I'll invert your atomic chain! 00914_ EX-DEC: "Oops, I hope HEX didn't hear that..." 00949_ EXIT=FOUND LOCATION=UNKNOWN GOAL=ESCAPE 00959_ Receiving FarCom transmissions... 00982_ G-34 Mercenary destroyed. 00985_ Lgt. Ion Engine destroyed. 00987_ Com. Wheel destroyed. 00988_ R-06 Scavenger collects Aluminum Leg. 00990_ Com. Wheel destroyed. 00992_ G-47 Trooper destroyed. 00993_ R-06 Scavenger collects Aluminum Leg. 00994_ Lgt. Assault Rifle destroyed. 00996_ R-06 Scavenger collects Particle Gun. Map ----- +----------------------------------------------------+ | | | | | | | | | | | | | | | | | | | | | | | | | | | ??????????????????????????????????????????? | | ??????????????????????????????????????????? | | ??????????????###?????????????????????????? | | ?????????????## #????????????????????????? | | ????????????## ????????????????????????? | | ????????????? #???????????????????????? | | ?????????????? ####???????????????????? | | ??????????????? ##??????????????????? | | ????????????????# #??????????????????? | | ?????????????????# ##?????????????????? | | ??????????????????# #?????????????????? | | ?????????????????##%%g #?????????????????? | | ?????????????????#@ * #?????????????????? | | ?????????????????# ##?????????????????? | | ?????????????????## ##??????????????????? | | ??????????????????## ##???????????????????? | | ??????????????????? ????????????????????? | | ??????????????????## ##???????????????????? | | ???????????????????# #????????????????????? | | ??????????????????? ????????????????????? | | ??????????????????? ##????????????????????? | | ??????????????????? ??????????????????????? | | ??????????????????? ??????????????????????? | | ?????????????????? ??????????????????????? | | ?????????????????? #??????????????????????? | | ?????????????????? ???????????????????????? | | ?????????????????? ???????????????????????? | | ??????????????????????????????????????????? | | ??????????????????????????????????????????? | | ??????????????????????????????????????????? | | ??????????????????????????????????????????? | | ??????????????????????????????????????????? | | ??????????????????????????????????????????? | | ??????????????????????????????????????????? | | ??????????????????????????????????????????? | | ??????????????????????????????????????????? | | ??????????????????????????????????????????? | +----------------------------------------------------+ Best States ------------- Heat Dissipation 25 Energy Generation 10 Energy Capacity 250 Matter Stores 269 Matter Capacity 300 Sight Range 16 Robot Scan Range 14 Terrain Scan Density 10 Evasion (%) 44 Item Schematics ----------------- None Robot Schematics ------------------ None Fabricated ------------ Nothing Repaired ---------- Nothing Studied --------- None Alien Tech Used ----------------- None Achievements -------------- None Challenges ------------ None Game ------ Seed ZhirovStormProcsplitter Manual? 0 Play Time 00:08:00 Cumulative 48.8 hours Start 2026.08.21 @ 09:38:27 End 2026.08.21 @ 09:45:58 Sessions 1 Manual Loads 0 Difficulty Rogue Special Mode None Game No. 140 Rogue 140 Adventurer 0 Explorer 0 Win Type - Total 0 Types 0/0/0/0/0/0/0/0/0/0 Lore% 22 Gallery% 35 Achievement% 21 Wizard Run 0 Options --------- Layout 1 ASCII 0 Keyboard 0 Movement Mouse Keybinds 0 Fullscreen 1 Font 24/Smallcaps Map View 50x35 Zoom Use 0% Tactical HUD 1 Map Filters NONE Filters NONE Steam 1 RUN: 9aa89a78-4cf2-473b-ab0e-7ee0578dbd55